{"text_format":"3","workbook":"xlsx","n_sheets":4,"sheets":["Milníky","Plán","Informace","Data grafu"],"not_rendered":{"charts":1,"defined_names":2},"read":"whole","date_system":"1900"}

{"sheet":"Milníky","index":0,"n_rows":27,"n_cols":5,"rows_kept":27}
["Pokud chcete vytvořit plán, zadejte na tomto listu důležité milníky a aktivity.\nV buňce C1 je název tohoto listu. \nInformace o používání tohoto listu, včetně pokynů pro čtečky obrazovky, jsou na listu Informace.\nDalší pokyny jsou v dalších buňkách ve sloupci A.",null,"Milníky"]
["V buňkách C2 až F2 jsou záhlaví tabulky. Pomocí možnosti Seřadit a filtrovat můžete tabulku seřadit nebo vyhledat konkrétní položky.\nV tabulce můžete od buňky C3 zadávat milníky s daty a nastavovat jejich pozice pro zobrazení v grafu.\nSloupec B je skrytý. Graf generovaný z těchto dat používá posuvník pro zobrazení úseků časové osy. Sloupec B pomáhá určit, které milníky se mají zobrazit v grafu při změně pozice posuvníku. \nUpozornění: V případě odstranění nebo změny obsahu sloupce B by se mohla narušit integrita funkcí grafu v tomto sešitu.","Č.","Pozice","Datum","Milník"]
["Do buňky C1 zadejte pozice pro zobrazení data a milníku v grafu. Když zadáte kladné číslo mezi 1 až 3, milník se zobrazí nad časovou osou. Když zadáte záporné číslo mezi -1 až -3, milník se zobrazí pod ní.\nDo sloupců D a E v tabulce zadejte datum a milník nebo aktivitu.\nTento postup opakujte na každém dalším řádku v tabulce napravo.\nNa řádcích 3 až 26 jsou k dispozici ukázková data. Pokud chcete vytvořit vlastní plán, můžete je podle potřeby upravit nebo odstranit.\nDalší pokyn najdete v buňce A27.",{"$f":"ROW($A1)","v":1},1,{"$f":"TODAY()","v":"2018-06-27"},"Začátek"]
[null,{"$f":"ROW($A2)","v":2},-2,{"$f":"D3+10","v":"2018-07-07"},"Analýza problému\naktivita 1"]
[null,3,1,{"$f":"D4+20","v":"2018-07-27"},"Vývoj obchodního případu\naktivita 1\naktivita 2"]
[null,4,-1,{"$f":"D5+30","v":"2018-08-26"},"Kontrola prezentace"]
[null,5,{"v":-0.5,"d":"-1"},{"$f":"D6+40","v":"2018-10-05"},"Úvodní schůzka s vedením\naktivita 1\naktivita 2"]
[null,6,2,{"$f":"D7+50","v":"2018-11-24"},"Přizpůsobení požadavkům vedení\naktivita 1\naktivita 2\naktivita 3"]
[null,7,{"v":0.5,"d":"1"},{"$f":"D8+60","v":"2019-01-23"},"Získání interních schválení"]
[null,8,-1,{"$f":"D9+70","v":"2019-04-03"},"Výběr zdrojů"]
[null,9,{"v":0.5,"d":"1"},{"$f":"D10+80","v":"2019-06-22"},"Vytvoření týmu\naktivita 1 "]
[null,10,-2,{"$f":"D11+90","v":"2019-09-20"},"Úvodní schůzka týmu\naktivita 1 \naktivita 2\naktivita 3\naktivita 4"]
[null,11,3,{"$f":"D12+100","v":"2019-12-29"},"Začátek shromažďování dat"]
[null,12,-1,{"$f":"D13+90","v":"2020-03-28"},"Analýza dat"]
[null,{"$f":"ROW($A13)","v":13},1,{"$f":"D14+80","v":"2020-06-16"},"Návrh"]
[null,{"$f":"ROW($A14)","v":14},1,{"$f":"D15+70","v":"2020-08-25"},"Kontrola konceptu"]
[null,15,-3,{"$f":"D16+60","v":"2020-10-24"},"Testování a analýza"]
[null,16,-2,{"$f":"D17+50","v":"2020-12-13"},"Úpravy návrhu"]
[null,17,2,{"$f":"D18+40","v":"2021-01-22"},"Další vývoj"]
[null,18,-1,{"$f":"D19+30","v":"2021-02-21"},"Testování a analýza"]
[null,19,1,{"$f":"D20+20","v":"2021-03-13"},"Úpravy návrhu"]
[null,20,-3,{"$f":"D21+10","v":"2021-03-23"},"Další vývoj"]
[null,21,2,{"$f":"D22+20","v":"2021-04-12"},"Poslední testování"]
[null,22,1,{"$f":"D23+30","v":"2021-05-12"},"Testování beta verze"]
[null,23,-3,{"$f":"D24+40","v":"2021-06-21"},"Revize"]
[null,24,-2,{"$f":"D25+50","v":"2021-08-10"},"Uvedení na trh"]
["Pokud chcete do tabulky s Milníky Plánu přidat další řádky, vložte jednoduše nový řádek nad tento.\nNa tomto listu už nejsou žádné další pokyny.",null,"Pokud chcete přidat další milníky, vložte nové řádky nad tento."]

{"sheet":"Plán","index":1,"n_rows":3,"n_cols":4,"rows_kept":3}
["Na tomto listu je graf, který zobrazuje milníky z listu Milníky. \nV buňkách B2, C2 a D2 jsou vyznačené roky, které mají nastavený styl Nadpis 3.\nNajednou se zobrazuje 10 milníků. \nPlánem můžete procházet pomocí posuvníku v buňkách B4 až D4.\nRoky časové osy jsou v buňkách B3 až D3.\nNa tomto listu už nejsou žádné další pokyny."]
[]
[null,{"$f":"'Data grafu'!B20","v":2018},{"$f":"'Data grafu'!B21","v":""},{"$f":"'Data grafu'!B22","v":2019}]

{"sheet":"Informace","index":2,"n_rows":5,"n_cols":1,"rows_kept":5}
["O tomto sešitu"]
["Pokyny pro čtečky obrazovky"]
["V tomto sešitu jsou 4 listy. \n\nMilníky\nPlán\nInformace\nData grafu – skrytý list\n\nPokyny pro každý list najdete vždy ve sloupci A od buňky A1. Jsou napsané skrytým textem. Každý krok vás provede informacemi na daném řádku. Každý další krok pokračuje v buňkách A2, A3 a tak dále, pokud není výslovně uvedené něco jiného. Text pokynu by mohl například znít „Další pokyn najdete v buňce A6“. \n\nSkrytý text se nevytiskne.\n\nPokud chcete tyto pokyny z libovolného listu odebrat, stačí jednoduše odstranit sloupec A.\n"]
["V tomto plánu se pro umístění milníků a aktivit využívají pozice. Pomocí pozic se dá nastavit váha milníku nebo aktivity. Hodnoty jednoduše upravte podle vámi uvažované váhy. Milník nebo aktivita č. 3 může mít třeba vyšší váhu než milník nebo aktivita č. 2. Pokud to chcete znázornit v grafu, nastavte jednoduše pro milník nebo aktivitu č. 3 vyšší hodnotu pozice než pro milník nebo aktivitu č. 2.  \n"]
["Toto je poslední pokyn na tomto listu."]

{"sheet":"Data grafu","index":3,"n_rows":26,"n_cols":4,"rows_kept":26,"hidden":true}
["Na tomto listu jsou data potřebná pro fungování dynamického grafu. Tento list neodstraňujte!\nOdstranění tohoto listu by mohlo narušit dynamické funkce tohoto sešitu.","Tento list neodstraňujte!"]
["V buňce B2 je název tabulky.","Obsah dynamického grafu"]
["V buňkách B3 až D3 jsou záhlaví tabulky. \nTato tabulka se automaticky aktualizuje na základě obsahu zadaného na listu Milníky.\nUpozornění: V případě úpravy nebo odstranění obsahu v této tabulce by se mohly narušit funkce dynamické aktualizace grafu plánu na listu Plán.\nDalší pokyn najdete v buňce A15.","Datum","Události","Pozice"]
[null,{"$f":"IFERROR(IF(LEN(Milníky!D3)=0,\"\",INDEX(MilníkyPlánu[],Milníky!$B3+$B$17,3)),\"\")","v":"2018-06-27"},{"$f":"IFERROR(IF(LEN(Milníky!E3)=0,\"\",INDEX(MilníkyPlánu[],Milníky!$B3+$B$17,4)),\"\")","v":"Začátek"},{"$f":"IFERROR(INDEX(MilníkyPlánu[],Milníky!$B3+$B$17,2),\"\")","v":1}]
[null,{"$f":"IFERROR(IF(LEN(Milníky!D4)=0,\"\",INDEX(MilníkyPlánu[],Milníky!$B4+$B$17,3)),\"\")","v":"2018-07-07"},{"$f":"IFERROR(IF(LEN(Milníky!E4)=0,\"\",INDEX(MilníkyPlánu[],Milníky!$B4+$B$17,4)),\"\")","v":"Analýza problému\naktivita 1"},{"$f":"IFERROR(INDEX(MilníkyPlánu[],Milníky!$B4+$B$17,2),\"\")","v":-2}]
[null,{"$f":"IFERROR(IF(LEN(Milníky!D5)=0,\"\",INDEX(MilníkyPlánu[],Milníky!$B5+$B$17,3)),\"\")","v":"2018-07-27"},{"$f":"IFERROR(IF(LEN(Milníky!E5)=0,\"\",INDEX(MilníkyPlánu[],Milníky!$B5+$B$17,4)),\"\")","v":"Vývoj obchodního případu\naktivita 1\naktivita 2"},{"$f":"IFERROR(INDEX(MilníkyPlánu[],Milníky!$B5+$B$17,2),\"\")","v":1}]
[null,{"$f":"IFERROR(IF(LEN(Milníky!D6)=0,\"\",INDEX(MilníkyPlánu[],Milníky!$B6+$B$17,3)),\"\")","v":"2018-08-26"},{"$f":"IFERROR(IF(LEN(Milníky!E6)=0,\"\",INDEX(MilníkyPlánu[],Milníky!$B6+$B$17,4)),\"\")","v":"Kontrola prezentace"},{"$f":"IFERROR(INDEX(MilníkyPlánu[],Milníky!$B6+$B$17,2),\"\")","v":-1}]
[null,{"$f":"IFERROR(IF(LEN(Milníky!D7)=0,\"\",INDEX(MilníkyPlánu[],Milníky!$B7+$B$17,3)),\"\")","v":"2018-10-05"},{"$f":"IFERROR(IF(LEN(Milníky!E7)=0,\"\",INDEX(MilníkyPlánu[],Milníky!$B7+$B$17,4)),\"\")","v":"Úvodní schůzka s vedením\naktivita 1\naktivita 2"},{"$f":"IFERROR(INDEX(MilníkyPlánu[],Milníky!$B7+$B$17,2),\"\")","v":-0.5}]
[null,{"$f":"IFERROR(IF(LEN(Milníky!D8)=0,\"\",INDEX(MilníkyPlánu[],Milníky!$B8+$B$17,3)),\"\")","v":"2018-11-24"},{"$f":"IFERROR(IF(LEN(Milníky!E8)=0,\"\",INDEX(MilníkyPlánu[],Milníky!$B8+$B$17,4)),\"\")","v":"Přizpůsobení požadavkům vedení\naktivita 1\naktivita 2\naktivita 3"},{"$f":"IFERROR(INDEX(MilníkyPlánu[],Milníky!$B8+$B$17,2),\"\")","v":2}]
[null,{"$f":"IFERROR(IF(LEN(Milníky!D9)=0,\"\",INDEX(MilníkyPlánu[],Milníky!$B9+$B$17,3)),\"\")","v":"2019-01-23"},{"$f":"IFERROR(IF(LEN(Milníky!E9)=0,\"\",INDEX(MilníkyPlánu[],Milníky!$B9+$B$17,4)),\"\")","v":"Získání interních schválení"},{"$f":"IFERROR(INDEX(MilníkyPlánu[],Milníky!$B9+$B$17,2),\"\")","v":0.5}]
[null,{"$f":"IFERROR(IF(LEN(Milníky!D10)=0,\"\",INDEX(MilníkyPlánu[],Milníky!$B10+$B$17,3)),\"\")","v":"2019-04-03"},{"$f":"IFERROR(IF(LEN(Milníky!E10)=0,\"\",INDEX(MilníkyPlánu[],Milníky!$B10+$B$17,4)),\"\")","v":"Výběr zdrojů"},{"$f":"IFERROR(INDEX(MilníkyPlánu[],Milníky!$B10+$B$17,2),\"\")","v":-1}]
[null,{"$f":"IFERROR(IF(LEN(Milníky!D11)=0,\"\",INDEX(MilníkyPlánu[],Milníky!$B11+$B$17,3)),\"\")","v":"2019-06-22"},{"$f":"IFERROR(IF(LEN(Milníky!E11)=0,\"\",INDEX(MilníkyPlánu[],Milníky!$B11+$B$17,4)),\"\")","v":"Vytvoření týmu\naktivita 1 "},{"$f":"IFERROR(INDEX(MilníkyPlánu[],Milníky!$B11+$B$17,2),\"\")","v":0.5}]
[null,{"$f":"IFERROR(IF(LEN(Milníky!D12)=0,\"\",INDEX(MilníkyPlánu[],Milníky!$B12+$B$17,3)),\"\")","v":"2019-09-20"},{"$f":"IFERROR(IF(LEN(Milníky!E12)=0,\"\",INDEX(MilníkyPlánu[],Milníky!$B12+$B$17,4)),\"\")","v":"Úvodní schůzka týmu\naktivita 1 \naktivita 2\naktivita 3\naktivita 4"},{"$f":"IFERROR(INDEX(MilníkyPlánu[],Milníky!$B12+$B$17,2),\"\")","v":-2}]
[]
["Možnost posouvat se v plánu se ovládá pomocí přírůstkové hodnoty. V buňce B15 je nadpis pro tuto možnost.\nV buňkách B16 a B17 je tabulka se záhlavím a jednou hodnotou.\nDalší pokyn najdete v buňce A19.","Možnost posouvání"]
[null,"Přírůstek řádků"]
[null,0]
[]
["V grafu plán se na časové ose vykreslují roky. Aby to bylo možné, musí se roky extrahovat ze seznamu milníků. \nV buňce B19 je nadpis tohoto oddílu: Rok. \nV buňkách C20 až C22 jsou automaticky vygenerované hodnoty roků.\nUpozornění: V případě odstranění nebo úpravy těchto roků by se mohla narušit přesnost grafu na listu Plán.\nDalší pokyn najdete v buňce A24.","Rok"]
[null,{"$f":"IFERROR(YEAR(B4),\"\")","v":2018},"<-- Počáteční rok plánu"]
[null,{"$f":"IFERROR(IF(YEAR($B$9)=$B$20,\"\",YEAR($B$9)),\"\")","v":""},"<-- Prostřední rok plánu. Poznámka: Pokud jde o stejný rok jako počáteční, může být tato buňka prázdná."]
[null,{"$f":"IFERROR(IF(YEAR($B$13)=$B$20,\"\",YEAR($B$13)),\"\")","v":2019},"<-- Koncový rok plánu. Poznámka: Pokud jde o stejný rok jako počáteční, může být tato buňka prázdná."]
[]
["Prstencové značky v grafu na listu Plán obsahují data z obsahu dynamického grafu na tomto listu. První datum je v buňce C24, prostřední v buňce C25 a poslední v buňce C26.\nNa tomto listu už nejsou žádné další pokyny.","První datum",{"$f":"B4","v":"2018-06-27"}]
[null,"Prostřední datum",{"$f":"B9","v":"2018-11-24"}]
[null,"Poslední datum",{"$f":"B13","v":"2019-09-20"}]